[Event "*** Titled Tuesday Blitz"]
[Site "Chess.com"]
[Date "2020.05.19"]
[Round "2"]
[White "DinaBelenkaya"]
[Black "Shuvalov"]
[Result "1-0"]
[WhiteElo "2209"]
[BlackElo "2411"]
[TimeControl "180+1"]
[EndTime "12:20:31 PDT"]
[Termination "DinaBelenkaya won by checkmate"]

1. e4 {[%clk 0:03:00.9]} 1... e6 {[%clk 0:02:58.7]} 2. Qe2 {[%clk 0:03:00.2]}
2... c5 {[%clk 0:02:56.9]} 3. g3 {[%clk 0:02:57.5]} 3... Nc6 {[%clk 0:02:56.6]}
4. Nf3 {[%clk 0:02:57.8]} 4... Nf6 {[%clk 0:02:56.4]} 5. c3 {[%clk 0:02:56.9]}
5... d5 {[%clk 0:02:56]} 6. e5 {[%clk 0:02:55.7]} 6... Nd7 {[%clk 0:02:55.7]} 7.
d4 {[%clk 0:02:52.8]} 7... a5 {[%clk 0:02:43.6]} 8. Bg2 {[%clk 0:02:37.3]} 8...
b6 {[%clk 0:02:42.3]} 9. Na3 {[%clk 0:02:22.9]} 9... cxd4 {[%clk 0:02:28.1]} 10.
cxd4 {[%clk 0:02:06.1]} 10... Bxa3 {[%clk 0:02:22.5]} 11. bxa3 {[%clk 0:02:06]}
11... Ba6 {[%clk 0:02:22.9]} 12. Qb2 {[%clk 0:01:58.7]} 12... a4 {[%clk
0:02:14.3]} 13. Bf1 {[%clk 0:01:57.2]} 13... Qc8 {[%clk 0:02:11.2]} 14. Be2
{[%clk 0:01:51.2]} 14... Na5 {[%clk 0:02:05.3]} 15. O-O {[%clk 0:01:47.4]} 15...
Bxe2 {[%clk 0:02:02.1]} 16. Qxe2 {[%clk 0:01:46.9]} 16... Nc4 {[%clk 0:01:45.5]}
17. Bd2 {[%clk 0:01:46.9]} 17... Nb8 {[%clk 0:01:23.4]} 18. Rfc1 {[%clk
0:01:43.8]} 18... Nc6 {[%clk 0:01:18.4]} 19. Rab1 {[%clk 0:01:13.5]} 19... O-O
{[%clk 0:01:14.5]} 20. Rb5 {[%clk 0:01:09.1]} 20... Qa6 {[%clk 0:01:05]} 21.
Rbb1 {[%clk 0:01:06.6]} 21... Nxa3 {[%clk 0:00:42.4]} 22. Qxa6 {[%clk 0:01:05]}
22... Rxa6 {[%clk 0:00:43.3]} 23. Rxc6 {[%clk 0:00:52.6]} 23... Nxb1 {[%clk
0:00:43.1]} 24. Bb4 {[%clk 0:00:53]} 24... Re8 {[%clk 0:00:25.7]} 25. Rc1 {[%clk
0:00:52.7]} 25... h6 {[%clk 0:00:22.4]} 26. Rxb1 {[%clk 0:00:52.8]} 26... Rc8
{[%clk 0:00:22.7]} 27. a3 {[%clk 0:00:33]} 27... Rc2 {[%clk 0:00:21.4]} 28. Bd6
{[%clk 0:00:32]} 28... Kh7 {[%clk 0:00:19.5]} 29. Kf1 {[%clk 0:00:30.8]} 29...
Kg6 {[%clk 0:00:19.6]} 30. Ne1 {[%clk 0:00:15.2]} 30... Rc3 {[%clk 0:00:17.5]}
31. Ke2 {[%clk 0:00:14.4]} 31... Kf5 {[%clk 0:00:16.4]} 32. f3 {[%clk
0:00:14.9]} 32... h5 {[%clk 0:00:16]} 33. Kd2 {[%clk 0:00:14.8]} 33... Rb3
{[%clk 0:00:15.1]} 34. Rxb3 {[%clk 0:00:14.3]} 34... axb3 {[%clk 0:00:15]} 35.
Kc3 {[%clk 0:00:13.2]} 35... g5 {[%clk 0:00:14.5]} 36. h3 {[%clk 0:00:10.9]}
36... g4 {[%clk 0:00:13.9]} 37. hxg4+ {[%clk 0:00:11.2]} 37... hxg4 {[%clk
0:00:14.8]} 38. fxg4+ {[%clk 0:00:09.9]} 38... Kxg4 {[%clk 0:00:15.7]} 39. Kxb3
{[%clk 0:00:09.9]} 39... Kxg3 {[%clk 0:00:15.9]} 40. Nd3 {[%clk 0:00:09.8]}
40... Kf3 {[%clk 0:00:15.1]} 41. Nb4 {[%clk 0:00:09.4]} 41... Ra8 {[%clk
0:00:14.5]} 42. Bc7 {[%clk 0:00:04.4]} 42... b5 {[%clk 0:00:14.1]} 43. Bb6
{[%clk 0:00:04.1]} 43... Ke4 {[%clk 0:00:13.7]} 44. Bc5 {[%clk 0:00:04]} 44...
Rh8 {[%clk 0:00:11.8]} 45. Nc6 {[%clk 0:00:03.7]} 45... Rh1 {[%clk 0:00:10.6]}
46. Kb4 {[%clk 0:00:04]} 46... Rb1+ {[%clk 0:00:11.1]} 47. Ka5 {[%clk
0:00:04.4]} 47... Kd3 {[%clk 0:00:11.4]} 48. Nb4+ {[%clk 0:00:04.6]} 48... Kc4
{[%clk 0:00:11.4]} 49. Na6 {[%clk 0:00:04.6]} 49... Ra1 {[%clk 0:00:11.6]} 50.
Nc7 {[%clk 0:00:04.3]} 50... Rb1 {[%clk 0:00:10.9]} 51. Ne8 {[%clk 0:00:03.9]}
51... Rb3 {[%clk 0:00:09.9]} 52. Nd6+ {[%clk 0:00:04]} 52... Kd3 {[%clk
0:00:09.9]} 53. Nxb5 {[%clk 0:00:04.5]} 53... Kc4 {[%clk 0:00:09.5]} 54. Nd6+
{[%clk 0:00:04.4]} 54... Kd3 {[%clk 0:00:10.1]} 55. a4 {[%clk 0:00:04.9]} 55...
Rb1 {[%clk 0:00:10.1]} 56. Nb5 {[%clk 0:00:04.6]} 56... Ke4 {[%clk 0:00:10.2]}
57. Kb6 {[%clk 0:00:04.1]} 57... Kf5 {[%clk 0:00:10.5]} 58. a5 {[%clk
0:00:04.4]} 58... Ra1 {[%clk 0:00:11]} 59. a6 {[%clk 0:00:04.6]} 59... f6 {[%clk
0:00:11.1]} 60. exf6 {[%clk 0:00:04.3]} 60... Kxf6 {[%clk 0:00:12]} 61. Na3
{[%clk 0:00:03.6]} 61... Rh1 {[%clk 0:00:11.1]} 62. a7 {[%clk 0:00:03.6]} 62...
Rh8 {[%clk 0:00:12]} 63. Nb5 {[%clk 0:00:03.8]} 63... Ra8 {[%clk 0:00:11.7]} 64.
Bd6 {[%clk 0:00:04]} 64... Rxa7 {[%clk 0:00:12.6]} 65. Nxa7 {[%clk 0:00:03.4]}
65... Kf5 {[%clk 0:00:13.5]} 66. Be5 {[%clk 0:00:03.8]} 66... Ke4 {[%clk
0:00:14]} 67. Nc6 {[%clk 0:00:04.5]} 67... Kd3 {[%clk 0:00:14.1]} 68. Nd8 {[%clk
0:00:05.4]} 68... Kc4 {[%clk 0:00:14.4]} 69. Nf7 {[%clk 0:00:06.3]} 69... Kd3
{[%clk 0:00:15.3]} 70. Kc6 {[%clk 0:00:06.9]} 70... Ke4 {[%clk 0:00:16.2]} 71.
Kd6 {[%clk 0:00:07.7]} 71... Kf5 {[%clk 0:00:17.1]} 72. Nd8 {[%clk 0:00:08.3]}
72... Kg6 {[%clk 0:00:17.8]} 73. Nxe6 {[%clk 0:00:08.8]} 73... Kf5 {[%clk
0:00:17.4]} 74. Kxd5 {[%clk 0:00:09.2]} 74... Kg6 {[%clk 0:00:17.2]} 75. Nc7
{[%clk 0:00:10.1]} 75... Kf7 {[%clk 0:00:17.7]} 76. Nb5 {[%clk 0:00:11]} 76...
Ke7 {[%clk 0:00:18.3]} 77. Kc6 {[%clk 0:00:10.5]} 77... Ke6 {[%clk 0:00:18.5]}
78. Bf4 {[%clk 0:00:10.6]} 78... Kf5 {[%clk 0:00:18.7]} 79. Bh2 {[%clk
0:00:10.5]} 79... Kg4 {[%clk 0:00:18.6]} 80. d5 {[%clk 0:00:11]} 80... Kh3
{[%clk 0:00:19.5]} 81. d6 {[%clk 0:00:11.9]} 81... Kxh2 {[%clk 0:00:20.3]} 82.
d7 {[%clk 0:00:12.8]} 82... Kg3 {[%clk 0:00:21.1]} 83. d8=Q {[%clk 0:00:13.7]}
83... Kf3 {[%clk 0:00:22]} 84. Qe7 {[%clk 0:00:14.5]} 84... Kf4 {[%clk 0:00:22]}
85. Kd5 {[%clk 0:00:15.4]} 85... Kf5 {[%clk 0:00:22.7]} 86. Qe6+ {[%clk
0:00:15.5]} 86... Kf4 {[%clk 0:00:18.1]} 87. Qe5+ {[%clk 0:00:15.8]} 87... Kf3
{[%clk 0:00:18.4]} 88. Kd4 {[%clk 0:00:16]} 88... Kg4 {[%clk 0:00:18.6]} 89. Qf6
{[%clk 0:00:15.9]} 89... Kg3 {[%clk 0:00:18.8]} 90. Qf5 {[%clk 0:00:15.7]} 90...
Kg2 {[%clk 0:00:18.9]} 91. Ke3 {[%clk 0:00:16.1]} 91... Kh1 {[%clk 0:00:19.1]}
92. Qg5 {[%clk 0:00:15.8]} 92... Kh2 {[%clk 0:00:19]} 93. Kf2 {[%clk 0:00:16.2]}
93... Kh1 {[%clk 0:00:19.4]} 94. Qg2# {[%clk 0:00:16.2]} 1-0

[Event "*** Titled Tuesday Blitz"]
[Site "Chess.com"]
[Date "2020.05.19"]
[Round "2"]
[White "MasterKroket"]
[Black "MisiekZielony"]
[Result "1/2-1/2"]
[WhiteElo "2392"]
[BlackElo "2110"]
[TimeControl "180+1"]
[EndTime "12:20:35 PDT"]
[Termination "Game drawn by repetition"]

1. d4 {[%clk 0:03:00.9]} 1... d5 {[%clk 0:02:59.7]} 2. c4 {[%clk 0:03:01.5]}
2... c6 {[%clk 0:02:59.6]} 3. Nf3 {[%clk 0:03:01.5]} 3... Nf6 {[%clk 0:02:59.5]}
4. Nc3 {[%clk 0:03:02.1]} 4... dxc4 {[%clk 0:02:58.9]} 5. a4 {[%clk 0:03:02]}
5... a5 {[%clk 0:02:58.4]} 6. e4 {[%clk 0:02:56.5]} 6... Bg4 {[%clk 0:02:58]} 7.
Bxc4 {[%clk 0:02:53.4]} 7... e6 {[%clk 0:02:57.9]} 8. h3 {[%clk 0:02:51.8]} 8...
Bh5 {[%clk 0:02:57.7]} 9. Be3 {[%clk 0:02:47.7]} 9... Bb4 {[%clk 0:02:56.9]} 10.
Qc2 {[%clk 0:02:41.8]} 10... Nbd7 {[%clk 0:02:56.5]} 11. Nd2 {[%clk 0:02:34.8]}
11... Bg6 {[%clk 0:02:46.6]} 12. O-O {[%clk 0:02:31.5]} 12... Nd5 {[%clk
0:02:37.3]} 13. Nxd5 {[%clk 0:02:09.1]} 13... exd5 {[%clk 0:02:33.1]} 14. Bd3
{[%clk 0:02:07.8]} 14... Bxd2 {[%clk 0:02:22.1]} 15. Bxd2 {[%clk 0:02:06.3]}
15... dxe4 {[%clk 0:02:21.1]} 16. Bxe4 {[%clk 0:02:04.6]} 16... O-O {[%clk
0:02:21.1]} 17. Rfd1 {[%clk 0:01:58.9]} 17... Nf6 {[%clk 0:02:12.1]} 18. Bxg6
{[%clk 0:01:56.8]} 18... hxg6 {[%clk 0:02:11.9]} 19. Bg5 {[%clk 0:01:57.4]}
19... Qd7 {[%clk 0:02:01.3]} 20. Bxf6 {[%clk 0:01:53.2]} 20... gxf6 {[%clk
0:02:01.2]} 21. Ra3 {[%clk 0:01:45.6]} 21... Rfd8 {[%clk 0:01:56.4]} 22. Rc3
{[%clk 0:01:40.5]} 22... Qe6 {[%clk 0:01:30]} 23. Rc5 {[%clk 0:01:40.2]} 23...
Rd5 {[%clk 0:01:29.4]} 24. Qc3 {[%clk 0:01:40.6]} 24... Qd6 {[%clk 0:01:23.2]}
25. Re1 {[%clk 0:01:13.5]} 25... Rxd4 {[%clk 0:00:50.7]} 26. Rxa5 {[%clk
0:01:09.3]} 26... Rd8 {[%clk 0:00:48.9]} 27. Ra7 {[%clk 0:00:54.3]} 27... Rb4
{[%clk 0:00:43.7]} 28. a5 {[%clk 0:00:47.4]} 28... Kg7 {[%clk 0:00:42.7]} 29. a6
{[%clk 0:00:47.2]} 29... Rd7 {[%clk 0:00:26.3]} 30. axb7 {[%clk 0:00:42.2]}
30... Rdxb7 {[%clk 0:00:25.4]} 31. Rxb7 {[%clk 0:00:42.5]} 31... Rxb7 {[%clk
0:00:25.5]} 32. Rc1 {[%clk 0:00:43]} 32... c5 {[%clk 0:00:23.5]} 33. Rc2 {[%clk
0:00:31.9]} 33... Rb5 {[%clk 0:00:22.2]} 34. g3 {[%clk 0:00:31.4]} 34... Qb6
{[%clk 0:00:20.7]} 35. h4 {[%clk 0:00:25.2]} 35... Rb3 {[%clk 0:00:20.3]} 36.
Qxc5 {[%clk 0:00:23.4]} 36... Qxc5 {[%clk 0:00:20.2]} 37. Rxc5 {[%clk
0:00:24.3]} 37... Rxb2 {[%clk 0:00:20.8]} 38. Kg2 {[%clk 0:00:25.2]} 38... f5
{[%clk 0:00:20.5]} 39. Rc7 {[%clk 0:00:23.5]} 39... Rb3 {[%clk 0:00:18.8]} 40.
Ra7 {[%clk 0:00:21.3]} 40... Rc3 {[%clk 0:00:18.7]} 41. Re7 {[%clk 0:00:19]}
41... Rb3 {[%clk 0:00:18.8]} 42. Kf1 {[%clk 0:00:17]} 42... Rb2 {[%clk
0:00:18.2]} 43. Re2 {[%clk 0:00:15.8]} 43... Rb3 {[%clk 0:00:18]} 44. Rd2 {[%clk
0:00:16.1]} 44... Kf6 {[%clk 0:00:16.9]} 45. Ke2 {[%clk 0:00:16.7]} 45... f4
{[%clk 0:00:15.4]} 46. g4 {[%clk 0:00:10.9]} 46... Rh3 {[%clk 0:00:13.7]} 47. f3
{[%clk 0:00:05.9]} 47... Rxh4 {[%clk 0:00:12.2]} 48. Kd3 {[%clk 0:00:06.1]}
48... Rh8 {[%clk 0:00:08.8]} 49. Ke4 {[%clk 0:00:06.1]} 49... Ra8 {[%clk
0:00:06.5]} 50. Kxf4 {[%clk 0:00:05.5]} 50... Ra4+ {[%clk 0:00:06.5]} 51. Kg3
{[%clk 0:00:06.2]} 51... Kg7 {[%clk 0:00:06.6]} 52. Rd6 {[%clk 0:00:06.6]} 52...
Rb4 {[%clk 0:00:06.9]} 53. Rc6 {[%clk 0:00:06.9]} 53... Rd4 {[%clk 0:00:07.1]}
54. Rb6 {[%clk 0:00:07]} 54... Rc4 {[%clk 0:00:07.4]} 55. Rb2 {[%clk 0:00:07.3]}
55... Rd4 {[%clk 0:00:07.7]} 56. Re2 {[%clk 0:00:07.9]} 56... Rc4 {[%clk
0:00:08.2]} 57. Re3 {[%clk 0:00:07.2]} 57... Rd4 {[%clk 0:00:08.5]} 58. g5
{[%clk 0:00:07.2]} 58... Rd5 {[%clk 0:00:08.6]} 59. f4 {[%clk 0:00:07.5]} 59...
Rf5 {[%clk 0:00:09]} 60. Kg4 {[%clk 0:00:07.9]} 60... Rb5 {[%clk 0:00:09]} 61.
Re4 {[%clk 0:00:08.2]} 61... Rb1 {[%clk 0:00:08.9]} 62. Re3 {[%clk 0:00:08.4]}
62... Rg1+ {[%clk 0:00:08.9]} 63. Kf3 {[%clk 0:00:08.8]} 63... Rf1+ {[%clk
0:00:09.1]} 64. Kg3 {[%clk 0:00:09.4]} 64... Ra1 {[%clk 0:00:09.3]} 65. Kf3
{[%clk 0:00:09.8]} 65... Ra5 {[%clk 0:00:09.1]} 66. Re4 {[%clk 0:00:09.7]} 66...
Rf5 {[%clk 0:00:08.2]} 67. Kg4 {[%clk 0:00:10.1]} 67... Rd5 {[%clk 0:00:07.5]}
68. Re3 {[%clk 0:00:10.5]} 68... Rd4 {[%clk 0:00:07.7]} 69. Rf3 {[%clk
0:00:10.9]} 69... Rc4 {[%clk 0:00:08.1]} 70. Kg3 {[%clk 0:00:11.3]} 70... Rb4
{[%clk 0:00:08.5]} 71. Kg4 {[%clk 0:00:10.2]} 71... Rc4 {[%clk 0:00:09]} 72. Re3
{[%clk 0:00:10.5]} 72... Rb4 {[%clk 0:00:07]} 73. Re5 {[%clk 0:00:11]} 73... Rc4
{[%clk 0:00:05.4]} 74. Rd5 {[%clk 0:00:11.2]} 74... Rc3 {[%clk 0:00:05.7]} 75.
Re5 {[%clk 0:00:11.3]} 75... Rb3 {[%clk 0:00:05]} 76. Rc5 {[%clk 0:00:11.9]}
76... Rb2 {[%clk 0:00:05.3]} 77. Rc4 {[%clk 0:00:11.5]} 77... Rb3 {[%clk
0:00:05.7]} 78. Rc5 {[%clk 0:00:11.5]} 78... Rb4 {[%clk 0:00:05.8]} 79. Re5
{[%clk 0:00:11.7]} 79... Ra4 {[%clk 0:00:06.3]} 80. Kf3 {[%clk 0:00:11.7]} 80...
Rb4 {[%clk 0:00:06.7]} 81. Kg4 {[%clk 0:00:12.2]} 1/2-1/2

[Event "*** Titled Tuesday Blitz"]
[Site "Chess.com"]
[Date "2020.05.19"]
[Round "2"]
[White "Anna_ChessMate"]
[Black "MirMan90"]
[Result "1/2-1/2"]
[WhiteElo "2508"]
[BlackElo "2746"]
[TimeControl "180+1"]
[EndTime "12:20:40 PDT"]
[Termination "Game drawn - insufficient material"]

1. d4 {[%clk 0:03:00.9]} 1... Nf6 {[%clk 0:02:59.1]} 2. c4 {[%clk 0:03:00.6]}
2... g6 {[%clk 0:02:59.3]} 3. g3 {[%clk 0:03:00.6]} 3... d6 {[%clk 0:02:56.7]}
4. Bg2 {[%clk 0:02:58.9]} 4... Bg7 {[%clk 0:02:56.7]} 5. Nf3 {[%clk 0:02:57.4]}
5... O-O {[%clk 0:02:56.6]} 6. Nc3 {[%clk 0:02:56.7]} 6... Nc6 {[%clk
0:02:51.7]} 7. O-O {[%clk 0:02:51.6]} 7... Bf5 {[%clk 0:02:51.5]} 8. Ne1 {[%clk
0:02:50.1]} 8... Qc8 {[%clk 0:02:48.6]} 9. b3 {[%clk 0:02:28.7]} 9... Bh3 {[%clk
0:02:47.4]} 10. Bb2 {[%clk 0:02:27.3]} 10... Bxg2 {[%clk 0:02:46.1]} 11. Nxg2
{[%clk 0:02:27.5]} 11... e5 {[%clk 0:02:45.1]} 12. d5 {[%clk 0:02:26.5]} 12...
Ne7 {[%clk 0:02:43.7]} 13. f4 {[%clk 0:02:26.9]} 13... exf4 {[%clk 0:02:35]} 14.
gxf4 {[%clk 0:02:22.4]} 14... Nd7 {[%clk 0:02:33.2]} 15. e4 {[%clk 0:02:20.5]}
15... f5 {[%clk 0:02:31.3]} 16. Qc2 {[%clk 0:02:17.5]} 16... Nc5 {[%clk
0:02:18.7]} 17. Rae1 {[%clk 0:02:15.8]} 17... fxe4 {[%clk 0:02:15.7]} 18. b4
{[%clk 0:01:52.4]} 18... Nd3 {[%clk 0:02:15.1]} 19. Rxe4 {[%clk 0:01:52.6]}
19... Nxb2 {[%clk 0:02:14]} 20. Rxe7 {[%clk 0:01:52.4]} 20... Nxc4 {[%clk
0:02:07.5]} 21. Nb5 {[%clk 0:01:48.1]} 21... Nb6 {[%clk 0:01:43.2]} 22. Nxc7
{[%clk 0:01:46.3]} 22... Bd4+ {[%clk 0:01:33]} 23. Kh1 {[%clk 0:01:44.9]} 23...
Bf6 {[%clk 0:01:26.1]} 24. Re2 {[%clk 0:01:25.6]} 24... Rf7 {[%clk 0:01:26]} 25.
Nxa8 {[%clk 0:01:24.8]} 25... Qxa8 {[%clk 0:01:24.3]} 26. Ne3 {[%clk 0:01:11.6]}
26... Qd8 {[%clk 0:01:17.8]} 27. Ng4 {[%clk 0:01:06.3]} 27... Nxd5 {[%clk
0:01:16.7]} 28. Qc4 {[%clk 0:01:03.2]} 28... Nb6 {[%clk 0:01:14.5]} 29. Qe6
{[%clk 0:00:52.9]} 29... Kg7 {[%clk 0:01:13.5]} 30. f5 {[%clk 0:00:47.5]} 30...
g5 {[%clk 0:01:05.5]} 31. Rd1 {[%clk 0:00:46.2]} 31... d5 {[%clk 0:01:01.3]} 32.
Nxf6 {[%clk 0:00:37.4]} 32... Qxf6 {[%clk 0:00:56.1]} 33. Qxf6+ {[%clk
0:00:35.9]} 33... Kxf6 {[%clk 0:00:56.3]} 34. Rf1 {[%clk 0:00:28.2]} 34... Rd7
{[%clk 0:00:52.5]} 35. Re6+ {[%clk 0:00:28]} 35... Kf7 {[%clk 0:00:52.9]} 36.
Rh6 {[%clk 0:00:19.5]} 36... Kg7 {[%clk 0:00:51.9]} 37. Rh3 {[%clk 0:00:20]}
37... d4 {[%clk 0:00:48.1]} 38. f6+ {[%clk 0:00:19.7]} 38... Kg6 {[%clk
0:00:47.9]} 39. f7 {[%clk 0:00:16.8]} 39... Rxf7 {[%clk 0:00:47.7]} 40. Rxf7
{[%clk 0:00:17.4]} 40... Kxf7 {[%clk 0:00:47.8]} 41. Rxh7+ {[%clk 0:00:18.3]}
41... Ke6 {[%clk 0:00:44.1]} 42. Kg2 {[%clk 0:00:18.7]} 42... Nd7 {[%clk
0:00:40.2]} 43. Kf3 {[%clk 0:00:15.3]} 43... a6 {[%clk 0:00:38.9]} 44. Ke2
{[%clk 0:00:15]} 44... b6 {[%clk 0:00:28]} 45. Kd3 {[%clk 0:00:14.6]} 45... Nf6
{[%clk 0:00:26.2]} 46. Rb7 {[%clk 0:00:12.4]} 46... Nd5 {[%clk 0:00:23.9]} 47.
Kxd4 {[%clk 0:00:12.7]} 47... g4 {[%clk 0:00:23.4]} 48. a3 {[%clk 0:00:12.6]}
48... Kd6 {[%clk 0:00:21.8]} 49. Rh7 {[%clk 0:00:12]} 49... Nf4 {[%clk
0:00:21.4]} 50. Rh6+ {[%clk 0:00:11.7]} 50... Kc7 {[%clk 0:00:21.6]} 51. Ke5
{[%clk 0:00:11.3]} 51... Ne2 {[%clk 0:00:20.5]} 52. Kf5 {[%clk 0:00:09.3]} 52...
g3 {[%clk 0:00:20.2]} 53. hxg3 {[%clk 0:00:08.5]} 53... Nxg3+ {[%clk 0:00:20.6]}
54. Ke5 {[%clk 0:00:09.4]} 54... Ne2 {[%clk 0:00:19.6]} 55. Kd5 {[%clk
0:00:08.9]} 55... Nc3+ {[%clk 0:00:18.6]} 56. Kc4 {[%clk 0:00:09.3]} 56... Ne4
{[%clk 0:00:18.7]} 57. a4 {[%clk 0:00:08.8]} 57... Kb7 {[%clk 0:00:14.7]} 58.
Kd5 {[%clk 0:00:08.4]} 58... Nc3+ {[%clk 0:00:14.6]} 59. Kd6 {[%clk 0:00:08.8]}
59... Nxa4 {[%clk 0:00:14.8]} 60. Rh7+ {[%clk 0:00:08.5]} 60... Kb8 {[%clk
0:00:15.5]} 61. Kc6 {[%clk 0:00:08.6]} 61... b5 {[%clk 0:00:14.7]} 62. Rh8+
{[%clk 0:00:07.9]} 62... Ka7 {[%clk 0:00:15.1]} 63. Rh7+ {[%clk 0:00:08.6]}
63... Kb8 {[%clk 0:00:15.3]} 64. Rh3 {[%clk 0:00:08]} 64... Ka7 {[%clk
0:00:14.9]} 65. Kc7 {[%clk 0:00:08.4]} 65... a5 {[%clk 0:00:14.9]} 66. bxa5
{[%clk 0:00:07.5]} 66... Ka6 {[%clk 0:00:15.5]} 67. Kc6 {[%clk 0:00:07.3]} 67...
Kxa5 {[%clk 0:00:15.9]} 68. Rh5 {[%clk 0:00:07.3]} 68... Nc3 {[%clk 0:00:15.3]}
69. Kc5 {[%clk 0:00:07.6]} 69... b4 {[%clk 0:00:14.7]} 70. Kc4+ {[%clk
0:00:06.9]} 70... Ka4 {[%clk 0:00:15.2]} 71. Rh8 {[%clk 0:00:07.8]} 71... Ka3
{[%clk 0:00:13.4]} 72. Ra8+ {[%clk 0:00:07.6]} 72... Na4 {[%clk 0:00:12.8]} 73.
Kb5 {[%clk 0:00:06.9]} 73... b3 {[%clk 0:00:12.9]} 74. Rxa4+ {[%clk 0:00:07.8]}
74... Kb2 {[%clk 0:00:13.2]} 75. Kc4 {[%clk 0:00:07.4]} 75... Kc2 {[%clk
0:00:13.4]} 76. Rb4 {[%clk 0:00:05.3]} 76... b2 {[%clk 0:00:13.6]} 77. Rxb2+
{[%clk 0:00:04.9]} 77... Kxb2 {[%clk 0:00:13.9]} 1/2-1/2